Workbook

Sheet INFO
A1: Intended use of this document Those responsible for the drafting of actual individual EPB standards shall - read and understand the following documents - prCEN/TS 16628 Basic Principles (in short "BP") - prCEN/TS 16629 Detailed Technical Rules (in short "DTR") - prEN 15603:2013 ("Overarching Standard", in short "OA")) - prCEN/TR 15615:2013 Technical report to overarching standard; - Prepare their individual EPB standard according to CEN rules, BP, DTR and OA - Prepare the accompanying technical report using the dedicated template - Prepare an accompanying XLS spreadsheet, to demonstrate inputs, output and calculation chain. This sample excel spreadsheet provides a template to help in this task.
A2: Why an Excel spradsheet? To demonstrate the validity and required data I/O for the calculation procedure defined in the standard: - list of all input needed --> sheet "Method_input" - list of intended output --> sheet "Method_output" - calculation sequence --> sheet "Method_calculation"
A3: The example is prepared for a simple procedure. The sheet calculation may need extensions such as: - using several columns when operating on arrays - refering to a subset of sheets input/calculation/output to describe a subroutine For complex tasks MACRO can be used. This sheet does not support calculation methods that take into account data in a different time-step than that that is being calculated. A version that allows taking into account values at previous time step will be developed.
A4: LIST OF AVAILABLE SHEETS
A5: Simplified_input_correlation Use this sheet to demontrate simplified input correlation, if any in your standard. Typically these correlations are defined in annex C of the standard. They provide the normal detailed input of a procedure, based on a simplified input data set.
A6: Product_descriptive_data Use this sheet to list product descriptive data (typically with case identifiers). Some examples of selection tables are given. The output from the selection tables (green cells) can be linked to the sheet "method_input" for use in the procedure.
A7: Product_tech_data Use this sheet to list product technical data (typically numerical values and data). Some examples are given with default that may be typically included in annex A of the standard. The output from the selection tables (green cells) can be linked to the sheet "method_input" for use in the procedure.
A8: Process_design_data Use this sheet to list system descriptive data (typically with case identifiers). Some examples of selection tables are given. The output from the selection tables (green cells) can be linked to the sheet "method_input" for use in the procedure.
A9: Data_catalogue_example It is an example of how a data catalogue can work, filtering the catalogue of product properties based on product descriptive data. You can optionally build a similar catalogue for products involved in your standard.
A10: Input_series Prepare in this sheet data for each time step if you want to test the procedure on more steps.
A11: Method_input List in this sheet all the input required for the calculation in one time step. THIS SHEET IS REQUIRED TO DEMONSTRATE THE REQUIRED DATA INPUT.
A12: Method_calculation Detail in this sheet your calculation procedure. There should be one calculation in one cell for each equation in the standard. THIS SHEET IS REQUIRED TO DEMONSTRATE THE CALCULATION PROCEDURE.
A13: Method_output List in this sheet all the intended output of the procedure. THIS SHEET IS REQUIRED TO DEMONSTRATE THE AVAILABLE DATA OUTPUT.
A14: Output_series Series alculation results are stored in this sheet. Calculation for each time step is launched in this sheet.

Sheet Product_descriptive_data
A1: Example of descriptive data. In a simple structure, this can be connected directly to the "method_input" sheet where this data is required. In this example spreadsheet the "Method_input" is linked to the "data_catalogue".
A6: Product descriptive data (qualitative)
A8: storage type
A9: 3 | B9: STO_C_TYPE | C9: =INDEX(C11:C13,A9) -> STO_C_PCM
A11: Cold water storage | C11: STO_C_W
A12: Ice storage | C12: STO_H_ICE
A13: Phase Change Material (PCM) storage | C13: STO_C_PCM
A16: Storage use
A17: 4 | B17: STO_C_USE | C17: =INDEX(C19:C22,A17) -> STO_C_USE
A22: Cooling | C22: STO_C_USE
A25: Fuel
A26: 4 | B26: STO_C_FUEL | C26: =INDEX(C28:C32,A26) -> STO_FUEL_EL
A31: Electricity | C31: STO_FUEL_EL
A35: CE Marking
A36: 1 | B36: STO_C_CE | C36: =INDEX(C38:C39,A36) -> STO_C_DATA_YES
A38: Storage unit is marked CE | C38: STO_C_DATA_YES
A39: Storage unit is NOT marked CE | C39: STO_C_DATA_NO
A42: Storage control type
A43: 2 | B43: STO_C_CTRL_POW | C43: =INDEX(C45:C47,A43) -> STO_C_CTRL_POW_CRM
A45: Single thermostatic/pressure control (ON-OFF) | C45: STO_C_CTRL_POW_ONOF
A46: Thermostat and external signal authorization ( e.g. cost reflective message for low cost storage) | C46: STO_C_CTRL_POW_CRM
A47: Other | C47: STO_C_CTRL_POW_OTH
A50: Storage type (sizing)
A51: 2 | B51: STO_C_SIZING | C51: =INDEX(C53:C55,A51) -> STO_C_ACC_50
A52: 2
A53: Accumulation | C53: STO_C_ACC_100
A54: Semi accumulation | C54: STO_C_ACC_50
A55: Shifting peak period | C55: STO_C_OFF_PEAK

Sheet Product_tech_data
A1: EXAMPLE OF A SHEET WITH DEFAULT INPUT Create here a simulation of each default data formula given in annex A of the standard. Optionally connect the selected values to the detailed input data selection sheet (detailed input)
A5: A.1.2.1 Storage volume (nominal); | B5: VC;sto | C5: l | D5: 1000
A7: §
A8: A.1.2.2 Standby losses | B8: HC;sto;stb | C8: WK | D8: 5.8 | F8: =D8*60*24 -> 8352
A10: A.1.3. Caracteristic of material used for cooling storage
F14: qtr | G14: Qlat | H14: Qsens,sol | I14: Qsens,liq | J14: Kv,cr | K14: Kv,fu | L14: r | M14: quse,min | N14: quse,max
A15: Data table | B15: Symbol | C15: Unit | D15: Value | E15: Water | F15: 0 | G15: 93 | H15: 0,54+0,17%/K | I15: 1.16 | J15: 1 | K15: 1 | L15: 1000 | M15: -40 | N15: 90
A16: Transition Temperature (liquid- solid) | B16: Jtr | C16: °C | D16: =INDEX(F$15:F$23,$D$25,1) -> -33 | E16: PCM SN33 | F16: -33 | G16: 44.6 | H16: 0.7 | I16: 1.08 | J16: 1.6 | K16: 2.2 | L16: 724 | M16: -40 | N16: 60
A17: Latent heat capacity | B17: Qlat | C17: kWh/m3 | D17: =INDEX(G$15:G$23,$D$25,1) -> 44.6 | E17: PCM SN29 | F17: -28.9 | G17: 39.3 | H17: 0.8 | I17: 1.15 | J17: 1.6 | K17: 2.2 | L17: 681 | M17: -40 | N17: 60
A18: Sensible heat capacity in liquid phase | B18: Qsens,sol | C18: kWh/°C.m3 | D18: =INDEX(H$15:H$23,$D$25,1) -> 0.7 | E18: xx | F18: -15.4
A19: Sensible heat capacity in solid phase | B19: Qsens,liq | C19: kWh/°C.m3 | D19: =INDEX(I$15:I$23,$D$25,1) -> 1.08 | E19: xx | F19: -11.7
A20: Conductance for cristalisation | B20: Kv,cr | C20: kWh/m3 | D20: =INDEX(J$15:J$23,$D$25,1) -> 1.6 | E20: xx | F20: -10.4
A21: Conductance for melting | B21: Kv,fu | C21: kWh/m3 | D21: =INDEX(K$15:K$23,$D$25,1) -> 2.2 | E21: xa | F21: -5.5
A22: density | B22: r | C22: kg/m3 | D22: =INDEX(L$15:L$23,$D$25,1) -> 724 | E22: IN.03 | F22: -2.6 | G22: 48.3 | H22: 0.8 | I22: 1.2 | J22: 1.6 | K22: 2.2 | L22: 558 | M22: -25 | N22: 60
A23: Minimum temperature for use | B23: Juse,min | C23: °C | D23: =INDEX(M$15:M$23,$D$25,1) -> -40 | E23: xe | F23: 0
A24: Maximum temperature for use | B24: Juse,max | C24: °C | D24: =INDEX(N$15:N$23,$D$25,1) -> 60
A25: Your selection | D25: 2
A27: A.1.1.4. Caracterisation of feed up system to storage
A28: Seasonal performance of cooling production | B28: COPC;gen;sto | C28: - | D28: 3.25
A29: CE Marking | B29: STO_C_CE | C29: logical | D29: 1
A30: Power (pump) | B30: fC;sto;pmp;out | C30: kW | D30: 0.06
A31: Mass flow rate (nominal) | B31: DVC;gen;sto;aux | C31: m3/h | D31: 0.3
A34: A.1.1.5. Caracterisation of pump and pipes to deliver 'cooling' to users
A35: Thermal losses of the secondary system | B35: HC;sto;dis;ls | C35: W/K | D35: 20
A36: Power | B36: fC;sto;pmp;in | C36: kW | D36: 0.06
A37: Mass flow rate (nominal) | B37: DVC;sto;use | C37: m3/h | D37: 0.3

Sheet Process_design_data
A1: Example of process design data. In a simple structure, this can be connected directly to the "method_input" sheet where this data is required. In this example spreadsheet the "Method input" is linked to the detailed input.
A6: Process design data (qualitative)
A8: Storage location (installation position)
A9: 3 | B9: STO_C_LOC | C9: =INDEX(C11:C14,A9) -> STO_C_LOC_CHL | E9: qamb
E10: °C
A11: Heated space | C11: STO_C_LOC_INT | E11: 20
A12: Unheated room | C12: STO_C_LOC_UNH | E12: 5
A13: Storage (or chiller) room | C13: STO_C_LOC_CHL | E13: 15
A14: External | C14: STO_C_LOC_EXT | E14: -10
A15: Selected value | E15: =INDEX(E11:E14,$A$9) -> 15 | F15: °C
A19: type of control
A21: Continous operation | C21: STO_CTRL_CONT
A22: Time schedule operation | C22: STO_CTRL_TIME
A23: Temperature control | C23: ST0_CTRL_TEMP
E25: Value | F25: Unit
A26: Control factor for stroage | B26: fC;sto;ctrl | C26: f_C_sto_ctrl | E26: 1 | F26: -

Sheet Data_catalogue_example
A1: EXAMPLE OF A PRODUCT DATA CATALOGUE Product descriptive data is used to filter the actual catalogue. Unsuitable prioducts are indicated by "Non available" The desired product in the catalogue is then selected via the main list --> alla data is available with one click. NOTE: Default data are also part of the catalogue. This sample catalogue is connected to the "Method input" sheet. NOTE: This highlights the high importance of the user interface and of a correct data input structuring. | J1: DATA FOR EACH FLUID or PCM USED | X1: SELECTION OF PCM COMPATIBLE WITH THE QUALITATIVE DESCRIPTION
A4: Product descriptive data (qualitative)
A6: Storage type
A7: 1 | C7: STO_USE | D7: =INDEX(D9:D11,A7) -> STO_USE_C
A9: Cooling | D9: STO_USE_C
A14: Fluid used for storage
A15: 2 | C15: STO_FLUID | D15: =INDEX(D17:D18,A15) -> STO_FL_PCM
A16: Cold water | D16: STO_FL_CWAT
A17: Ice | D17: STO_FL_ICE
A18: Phase Change Material | D18: STO_FL_PCM
A21: CE Marking
A22: 2 | B22: STO_C_CE | C22: =INDEX(C24:C25,A22) -> STO_C_DATA_NO
A24: Storage unit is marked CE | C24: STO_C_DATA_YES
A25: Storage unit is NOT marked CE | C25: STO_C_DATA_NO
A28: Storage control type
A29: 3 | B29: STO_CTRL_POW | C29: =INDEX(C31:C33,A29) -> STO_CTRL_POW_OTH
A31: Single thermostatic control (ON-OFF) | C31: STO_C_CTRL_ON
A32: Thermostat and external signal authorization ( e.g. cost reflective message for electricity) | C32: STO_CTRL_POW_CRM
A33: Other | C33: STO_CTRL_POW_OTH
A36: Product technical data
A40: System design data
A42: Localisation | C42: LOC | D42: =INDEX(D45:D48,C43) -> LOC_CLR
C43: 3
A44: Values
A45: Heated space | D45: LOC_INT
A46: Unheated space | D46: LOC_UNH
A47: Chiller room | D47: LOC_CLR
A48: External | D48: LOC_EXT
A51: Operating conditions
A55: Description | C55: Variable TAG | D55: Option tag | E55: Symbol | F55: Unit | G55: Value | H55: Range
A56: Volume | C56: no | E56: VSTO,C | F56: l | G56: 1200 | H56: 0-1000
A57: diameter of tube | C57: no | E57: DSTO,C | F57: m | G57: 0.03 | H57: 0-0,1
A58: Lenght of tube | C58: no | E58: LSTO,C | F58: m | G58: 80 | H58: 0-1000
A59: Percentage of volume used by PCM | C59: no | E59: VSTO,C,PCM | F59: % | G59: 60 | H59: 0-100
A60: Use Type | C60: yes | G60: =INDEX(D9:D11,A7) -> STO_USE_C
A61: CE marking | C61: no | G61: =INDEX(C24:C25,A22) -> STO_C_DATA_NO
A62: Standby losses transmission coefficient | E62: HSTO,C,STBL | F62: W/K | G62: =Product_tech_data!D8 -> 5.8
A63: Temperature set point of the storage | C63: no | E63: qSTO,C,set,1 | F63: °C | G63: 4
A66: Caracteristic of material used for cooling storage
A70: Data table | G70: =INDEX(H$71:I$80,$G$81,1) -> PCM | I70: qtr | J70: Qlat | K70: Qsens,sol | L70: Qsens,liq | M70: Kv,cr l(water) | N70: Kv,fu l(water) | O70: rsld | P70: rliq | Q70: hsto,C | R70: % of volume used for PCM
A71: Transition Temperature (liquid- solid) | E71: qtr | F71: °C | G71: =INDEX(I$71:I$80,$G$81,1) -> 0 | H71: Water | I71: 0 | J71: 93 | K71: 0.54 | L71: 1.16 | M71: 0.55 | N71: 2.1 | O71: 1000 | P71: 900 | Q71: 1
A72: Latent heat capacity | E72: Qlat | F72: kWh/kg | G72: =INDEX(J$71:J$80,$G$81,1) -> 20 | H72: PCM | I72: 0 | J72: 20 | K72: 0.1 | L72: 0.4 | M72: 1.15 | N72: 1.85 | O72: 600 | P72: 600 | Q72: 0.9 | R72: 60
A73: Sensible heat capacity in solid phase | E73: Cpsens,sld | F73: kWh/°C.kg | G73: =INDEX(K$71:K$80,$G$81,1) -> 0.1 | H73: AC 00 | I73: 0 | J73: =48.4/O73 -> 0.08642857143 | K73: =0.7/O73 -> 0.00125 | L73: =1.1/P73 -> 0.001964285714 | M73: 1.15 | N73: 1.85 | O73: 560 | P73: 560 | Q73: 0.9 | R73: 60
A74: Sensible heat capacity in liquid phase | E74: Cpsens,liq | F74: kWh/°C.kg | G74: =INDEX(L$71:L$80,$G$81,1) -> 0.4 | H74: AN 03 | I74: -2.6 | J74: =48.3/O74 -> 0.08158783784 | K74: =0.8/O74 -> 0.001351351351 | L74: =1.2/P74 -> 0.002027027027 | M74: 1.15 | N74: 1.85 | O74: 592 | P74: 592 | Q74: 0.9 | R74: 60
A75: Conductance for cristalisation | E75: Kv,cr l(water) | F75: kW/°C.kg | G75: =INDEX(M$71:M$80,$G$81,1) -> 1.15 | H75: AN 06 | I75: -5.5 | J75: =44.6/O75 -> 0.07136 | K75: 0.75 | L75: 1.1 | M75: 1.15 | N75: 1.85 | O75: 625 | P75: 625 | Q75: 0.9 | R75: 60
A76: Conductance for melting | E76: Kv,fu l(water) | F76: kW/°C.kg | G76: =INDEX(N$71:N$80,$G$81,1) -> 1.85 | H76: AN10 | I76: -10.4 | J76: 49.9 | K76: 0.7 | L76: 1.07 | M76: 1.15 | N76: 1.85 | O76: 617 | P76: 617 | Q76: 0.9 | R76: 60
A77: density (liquid phase) | E77: rliq | F77: kg/m3 | G77: =INDEX(O$71:P$80,$G$81,1) -> 600 | H77: AN 12 | I77: -11.7 | J77: 47.7 | K77: 0.75 | L77: 1.09 | M77: 1.15 | N77: 1.85 | O77: 620 | P77: 620 | Q77: 0.9 | R77: 60
A78: density (solid phase) | E78: rsol | F78: kg/m3 | G78: =INDEX(P$71:P$80,$G$81,1) -> 600 | H78: AN 15 | I78: -15.4 | J78: 46.4 | K78: 0.7 | L78: 1.12 | M78: 1.15 | N78: 1.85 | O78: 602 | P78: 602 | Q78: 0.9 | R78: 60
A79: Coefficient of filling - nodules | E79: hPCM | F79: - | G79: =INDEX(Q$71:Q$80,$G$81,1) -> 0.9 | Q79: 0.9 | R79: 60
G80: =INDEX(R$71:R$80,$G$81,1) -> 60 | Q80: 0.9 | R80: 60
A81: Your selection | G81: 2
A84: Caracterisation of system for storage | J84: =333/3.6 -> 92.5
A85: Seasonal performance of cooling production | E85: COPC;gen | F85: - | G85: =Product_tech_data!D28 -> 3.25
A86: Set temperature | E86: qC;gen;sto | F86: °C | G86: -4
A87: CE Marking | E87: COPsto,C,gen,DATA | F87: logical | G87: =Product_tech_data!D29 -> 1
A88: Power | E88: fC;sto;pmp;out | F88: kW | G88: =Product_tech_data!D30 -> 0.06
A89: Mass flow rate (nominal) | E89: qC;sto;v;pmp;out | F89: m3/h | G89: 0.65
A92: Caracterisation of pump to deliver 'cooling' to users
A93: Thermal losses of the secondary system | E93: HC;sto;dis;ls;in | F93: W/K | G93: =Product_tech_data!D35 -> 20
A94: Power | E94: fC;sto;pmp;in | F94: kW | G94: =Product_tech_data!D36 -> 0.06
A95: Mass flow rate (nominal) | E95: qC;sto;v;pmp;in | F95: m3/h | G95: =Product_tech_data!D37 -> 0.3
A99: part of the thermal losses energy recoverable | E99: fC;sto;rvd;stb | F99: - | G99: 1 | H99: 0 …. 1
A100: part of the thermal losses not recovered | E100: fC;sto;rbl | F100: - | G100: 0 | H100: 0 …. 1
A101: part of the auxiliary energy recovered | E101: fC;sto;aux | F101: - | G101: 0.75 | H101: 0 …. 1
A102: part of the nominal electrical power not transmitted to the distribution sub-system | E102: fC;sto;aux;rbl | F102: - | G102: 0.25 | H102: 0 …. 1
D104: 1
A107: System design data
A108: Installation room temperature; | E108: qsto,amb | F108: °C | G108: 15

Sheet Input_series
A1: Load here the value of input variables for each time-step (time series) Set the number of input data for each time steps and the number of time step before running The macro from sheet "Output series". Local constant data may be input via the sheets "Constants"
A3: Time series for data input
A4: Settings
A5: Number of input data | D5: 13
A6: Number of time steps | D6: 12
A8: Description | B8: Calculation interval duration | C8: hour of the day | D8: Ambient air temperature | E8: Energy required (for cooling demand | F8: Temperature required for cooling | G8: temperature difference (generation to transition) | H8: Room temperature | I8: Temperature of the medium in the storage | J8: Temperature exhanger (distribution) | K8: Mass of liquid phase (initial) | L8: Temperature of the solid phase | M8: cooling st0rage control
A9: Symbol | B9: tci | C9: nnd | D9: Je | E9: QC;dis;in;tot;req | F9: JC;sto;dis;in;req | G9: DJC;sto;gen;flw | H9: Jsto;amb | I9: JC;sto | J9: JC;sto;exh | K9: Msto,fl,sld | L9: JC;sto;sld;0 | M9: CLG_STO_CTRL | N9: fC;sto;ctrl
A10: Unit | B10: h | C10: h | D10: °C | E10: kWh | F10: °C | G10: °C | H10: °C | I10: °C | J10: °C | K10: kg | L10: - | M10: -
A11: Origin | B11: - | C11: - | D11: x | E11: x | F11: x | G11: x | H11: x | I11: x | J11: x
A12: Origin | B12: M4-1 | C12: M1-9 | D12: M1-13 | E12: M4-9 | F12: M4-9 | G12: M4-6 | H12: M1-9 | I12: Local | J12: Local | K12: Local | L12: M4-12 | M12: Local | N12: M10-12
A15: Time stamp | F15: VALUES
A16: 1 | B16: 1 | C16: 12 | D16: 20 | E16: 2 | F16: 4 | G16: -4 | H16: 15 | I16: 0 | J16: 4 | K16: 50 | L16: 0 | M16: CONT | N16: 1
A17: 2 | B17: 1 | C17: 12 | D17: 20 | E17: 2 | F17: 4 | G17: -6 | H17: 15 | I17: 0 | J17: 4 | K17: 50 | L17: 0 | M17: CONT | N17: 1
A18: 3 | B18: 1 | C18: 12 | D18: 20 | E18: 2 | F18: 4 | G18: -6 | H18: 15 | I18: 0 | J18: 4 | K18: 40 | L18: 0 | M18: CONT | N18: 1
A19: 4 | B19: 1 | C19: 12 | D19: 20 | E19: 2 | F19: 4 | G19: -6 | H19: 15 | I19: 0 | J19: 4 | K19: 50 | L19: 0 | M19: CONT | N19: 1
A20: 5 | B20: 1 | C20: 12 | D20: 20 | E20: -2 | F20: 4 | G20: -6 | H20: 15 | I20: 0 | J20: 4 | K20: 50 | L20: 0 | M20: CONT | N20: 1
A21: 6 | B21: 1 | C21: 12 | D21: 20 | E21: -2 | F21: 4 | G21: -6 | H21: 15 | I21: 0 | J21: 4 | K21: 50 | L21: 0 | M21: CONT | N21: 1
A22: 7 | B22: 1 | C22: 12 | D22: 20 | E22: -1 | F22: 4 | G22: -6 | H22: 15 | I22: 0 | J22: 4 | K22: 20 | L22: 0 | M22: CONT | N22: 1
A23: 8 | B23: 1 | C23: 12 | D23: 20 | E23: 0 | F23: 4 | G23: -6 | H23: 15 | I23: 0 | J23: 4 | K23: 50 | L23: 0 | M23: CONT | N23: 1
A24: 9 | B24: 1 | C24: 12 | D24: 20 | E24: 0 | F24: 4 | G24: -6 | H24: 15 | I24: 0 | J24: 4 | K24: 50 | L24: 0 | M24: CONT | N24: 1
A25: 10 | B25: 1 | C25: 12 | D25: 20 | E25: -3 | F25: 4 | G25: -6 | H25: 15 | I25: 0 | J25: 4 | K25: 50 | L25: 0 | M25: CONT | N25: 1
A26: 11 | B26: 1 | C26: 12 | D26: 20 | E26: -3 | F26: 4 | G26: -6 | H26: 15 | I26: 0 | J26: 4 | K26: 60 | L26: 0 | M26: CONT | N26: 1
A27: 12 | B27: 720 | C27: 12 | D27: 20 | E27: -72 | F27: 4 | G27: -6 | H27: 15 | I27: 0 | J27: 4 | K27: 78 | L27: 0 | M27: CONT | N27: 1
A28: 13
A29: 14
A30: 15
A31: 16
A32: 17
A33: 18
A34: 19
A35: 20

Sheet Method_input
A1: THIS IS A MANDATORY SHEET All input data for the method shall be listed here. In the simplest version, values for data input in column D (both green and blue background) may be inserted manually. Varying data (green background) can be fed from the "input_series" sheet. In this sample data sheet, product data (blue background) is linked to a sample catalogue built in the "Detailed_input" sheet
A4: Name | B4: Symbol | C4: Computed Symbol | D4: Unit | E4: Value | F4: Range | G4: Origin | H4: Varying | I4: Notes
A5: Operating conditions data
A6: Duration of the time step | B6: tci | C6: t_ci | D6: h | E6: 720 | F6: 0…8760 | G6: M3-1 | H6: NO | I6: neutralised
A7: Hour of theday | B7: nnd | C7: n_nd | D7: h | E7: 12 | F7: 0…8760 | G7: M3-1 | H7: NO | I7: neutralised
A8: Ambient air temperature | B8: Je | C8: theta_e | D8: °C | E8: 20 | F8: 0…8760 | G8: M3-1 | H8: NO
A9: Energy required for cooling use | B9: QC;dis;in;tot;req | C9: Q_C_dis_in_tot_req | D9: kWh | E9: -72 | F9: ].∞; +∞[ | G9: M4-9 | H9: NO | I9: positive or negative
A10: Average temperature required for cooling (Min) | B10: JC;dis;in;req | C10: theta_C_sto_dis_in_req | D10: °C | E10: 4 | F10: -100,100 | G10: M4-9 | H10: NO | I10: idem
A11: Temperature difference of primary circuit vs transition temperature(input to storage) | B11: JC;gen;flw | C11: theta_C_gen_flw | D11: °C | E11: -6 | F11: 0...∞ | G11: M4-9 | H11: YES | I11: neutralised
A12: Room temperature | B12: Jsto;amb | C12: theta_sto_amb | D12: °C | E12: 15 | F12: -100,100 | G12: M4-8 | H12: NO
A13: Temperature of storage unit | B13: JC;sto | C13: theta_C_sto | D13: °C | E13: 0 | F13: -100,100 | H13: YES
A14: Temperature exhanger (dsitribution side) | B14: JC;sto;exh | C14: theta_C_sto_exh | D14: °C | E14: 4 | F14: 0...∞ | G14: Local | H14: YES
A15: Mass of solid phase | B15: mC;sto;sld | C15: m_C_sto_sld | D15: kg | E15: 78 | F15: 0...∞ | G15: Local | H15: YES
A16: Mass of liquid phase (PCM) | B16: mC;sto;lqd | C16: m_C_sto_lqd | D16: kg | E16: 0 | F16: 0...∞ | G16: Local | H16: YES
A17: Cooling strorage control | B17: CLG_STO_CTRL | C17: CLG_STO_CTRL | D17: - | E17: CONT | F17: List | G17: Local | H17: NO
A18: Storage control operation factor | B18: fC;sto;ctrl | C18: f_C_sto_ctrl | D18: - | E18: 1 | F18: 0…1 | G18: M10-12 | H18: YES
A20: System data
A22: Product data
A23: Cooling production information
A24: Seasonal performance of cooling production | B24: COPC;sto;gen | C24: COP_C_gen_sto | D24: - | E24: =Data_catalogue_example!$G$85 -> 3.25 | I24: not used in this version
A25: CE Marking | B25: COPC;gen;stoDATA | C25: COP_C_gen_sto_DATA | D25: logical | E25: =Data_catalogue_example!$G$87 -> 1 | I25: not used in this version
A26: Energy losses (pipes, heat exchanger) | B26: HC;sto;out;ls | C26: H_C_sto_out_ls | D26: W/K | E26: 5.8 | F26: 0-1000 | H26: NO
A27: Circulator power from cooling production | B27: fC;sto;pmp;out | C27: P_C_sto_pmp_out | D27: kW | E27: 0 | F27: 0-100 | G27: Local | H27: NO | I27: neutralised as accounted in the generation part
A28: Circulator mass flow | B28: qC;sto;v;pmp;out | C28: q_C_sto_v_pmp_out | D28: m3/h | E28: 0.65 | F28: 0-500 | G28: Local | H28: NO
A30: Storage technical data
A31: Volume of fluid used for heat transfer | B31: VC;sto;tot | C31: V_C_sto_tot | D31: l | E31: =Data_catalogue_example!G56 -> 1200 | F31: 0…100000 | G31: Local | H31: NO | I31: volume participating to storage (PCM modules) -Equal to 0 for ice or water storage
A32: Diameter of tube | B32: DC;sto | C32: D_C_sto | D32: m | E32: =Data_catalogue_example!G57 -> 0.03 | F32: 0-0,1 | G32: Local | H32: No | I32: Relevant for Water/Ice storage only
A33: Lenght of tube | B33: LC;sto | C33: L_C_sto | D33: m | E33: 40 | F33: 0-10000 | G33: Local | H33: No | I33: Relevant for Water/Ice storage only
A34: Percentage of volume used by PCM | B34: VC;sto;PCM | C34: V_C_sto_PCM | D34: % | E34: =Data_catalogue_example!G59 -> 60 | F34: 0_100 | G34: Local | H34: No | I34: Relevant fo rPCM only
A35: Sensible heat capacity of fluid for heat transfer | B35: Cpsto;sens | C35: Cp_sto_sens_med | D35: kWh/°C.m3 | E35: 1.16
A36: Density of fluid | B36: rsto;lqd | C36: rau_sto | D36: kg/m3 | E36: 1000
A37: Thermal losses coefficient of storage unit | B37: HC;sto;tot;ls | C37: H_C_sto_tot_ls | D37: W/K | E37: =Data_catalogue_example!G62 -> 5.8 | F37: 0-1000 | G37: Local
A38: Type of storage (PCM, ice, water) | B38: TYPE_STO_MAT | C38: TYPE_STO_MAT | D38: - | E38: =+Data_catalogue_example!$G$70 -> PCM | F38: =Data_catalogue_example!G81 -> 2
A39: Transition Temperature (liquid- solid) | B39: qtr | C39: theta_tr | D39: °C | E39: =+Data_catalogue_example!G71 -> 0
A40: Latent heat capacity | B40: Qlat | C40: Q_lat | D40: kWh/kg | E40: =+Data_catalogue_example!G72 -> 20
A41: Sensible heat capacity in solid phase | B41: Cpsens,sld | C41: Cp_sens_sld | D41: kWh/°C.kg | E41: =+Data_catalogue_example!G73 -> 0.1
A42: Sensible heat capacity in liquid phase | B42: Cpsens,lqd | C42: Cp_sens_lqd | D42: kWh/°C.kg | E42: =+Data_catalogue_example!G74 -> 0.4
A43: Conductance for cristalisation | B43: Kv,cr | C43: Kv_cr | D43: =IF(Data_catalogue_example!$G$81=1,H43,D42) -> kWh/°C.kg | E43: =+Data_catalogue_example!G75 -> 1.15 | H43: W/m.°C
A44: Conductance for melting | B44: Kv,fu | C44: Kv_fu | D44: =IF(Data_catalogue_example!$G$81=1,H44,D43) -> kWh/°C.kg | E44: =+Data_catalogue_example!G76 -> 1.85 | H44: W/m.°C
A45: density (liquid phase) | B45: rlqd | C45: rau_lqd | D45: kg/m3 | E45: =+Data_catalogue_example!G77 -> 600
A46: density (solid phase) | B46: rsld | C46: rau_sld | D46: kg/m3 | E46: =+Data_catalogue_example!G78 -> 600
A47: Volume used for PCM modules | B47: Vsto,pcm | C47: V_sto_pcm | D47: l | E47: =Data_catalogue_example!G59/100*Data_catalogue_example!G56 -> 720
A49: part of the thermal losses recoverable | B49: frvd,ls | C49: f_rvd_ls | E49: =+Data_catalogue_example!G99 -> 1 | F49: 0… 1 | G49: Local | H49: NO
A50: part of the auxiliary energy recoverable | B50: frvd,aux | C50: f_rvd_aux | D50: - | E50: =+Data_catalogue_example!G101 -> 0.75 | F50: 0…1 | G50: Local | H50: NO
A51: part of the nominal electrical power not transmitted to the distribution sub-system | B51: frbl,aux | C51: f_rbl_aux | D51: - | E51: =+Data_catalogue_example!G102 -> 0.25 | F51: 0.1 | G51: Local | H51: NO
A53: Storage distribution data
A54: Circulator power to 'USERS' | B54: fC;sto;pmp;in | C54: P_C_sto_pmp_in; | D54: kW | E54: 0 | F54: 0-100 | G54: Local | H54: NO | I54: neutralised as accounted in the distribution part
A55: Circulator mass flow | B55: qC;sto;v;pmp;in | C55: q_C_sto_v_pmp_in | D55: m3/h | E55: 0.9 | F55: 0-500 | G55: Local | H55: NO
A56: Difference Temperature of primary circuit vs transition temperature(input to storage) | B56: DqC;sto;flw;in | C56: delta_theta_C_sto_in_flw | D56: °C | E56: =E10-E13 -> 4 | F56: -100,100 | H56: NO
A57: Energy losses (pipes, heat exchanger) | B57: HC;sto;ls;in | C57: H_C_sto_ls_in | D57: W/K | E57: 5.8 | F57: 0-1000 | H57: NO
A59: System design data
A60: Process design
A61: storage room temperature; | B61: qsto;amb | C61: theta_sto_amb | D61: theta_sto_amb | E61: =+Data_catalogue_example!G108 -> 15 | F61: -50…+50 | G61: Local | H61: Yes
A63: Control type data
A64: Thermostat | B64: Tsto,C,set | C64: T_C_sto_set | D64: T_C_sto_set | E64: 0 | F64: -50…+50 | G64: Local | H64: YES
C65: d_C_sto_max | D65: d_C_sto_max | E65: 0.035 | F65: 0-1 | G65: Local | H65: No
A67: Constants
A68: Water specific heat | B68: Cp;w | C68: Cp_w | D68: Cp_w | E68: 1.16 | H68: NO
A70: Model Information
A71: Number of layers for the storage model | B71: NSTO,vol | C71: N_STO_vol | D71: N_STO_vol | E71: 1 | H71: NO

Sheet Method_calculation
A1: THIS IS A MANDATORY SHEET One time step calculation shall be described here. For each calculation step (= 1 row) data for the formula in column D shall be taken from the "Method_input" sheet or previous calculation steps. Include in the column "Formula ref" its number in the standard text. The example is based on EN 15316-4-1:2008 Copy and paste a copy of the equation into column "Formula" Use the column note for information on the calculation
A3: Description | B3: Symbol | C3: Unit | D3: Value | E3: Formula ref | F3: Formula | G3: Notes
A5: Energy required for cooling distribution system | B5: QC;in;tot;req | C5: kWh | D5: =Q_C_dis_in_tot_req -> -72 | E5: - | G5: Corresponding to the difference between energy input from the distribution and energy extracted from the generation
B6: QC;sto;dis;in | C6: kWh | D6: 0 | F6: net energy used for distribution | G6: undertermined as new formula introduces the difference beteween used and extracted energy (see above)
A7: Energy available from cooling production unit | B7: QC;sto;gen;out | C7: kWh | D7: 0 | E7: - | F7: net energy extracted from the generation unit | G7: undertermined as new formula introduces the difference beteween used and extracted energy (see above)
A8: Type of material for storage | B8: STO_TYPE | C8: - | D8: =Method_input!E38 -> PCM
A9: Single storage and monozone calculation
A10: Step 1 Energy stored
A11: Liquid mass | B11: mC;sto;lqd,0 | C11: kg | D11: =IF(Method_input!F38=1,0,Method_input!E45*Method_input!E47/1000-Method_input!E15) -> 354
A12: Sensible heat available (liquid) | B12: QC;sto;sens;lqd | C12: kWh | D12: =(Method_input!E42*Method_calculation!D11/Method_input!E45+Method_input!E31*Method_input!E35/Method_input!E36)*(Method_input!E10-Method_input!E13) -> 6.512 | E12: Formula (2)
A13: Latent heat available | B13: QC;lat | C13: kWh | D13: =IF(Method_input!E15>0,Method_input!E40*Method_input!E15/1000,0) -> 1.56 | E13: Formula (3)
A14: Sensible heat available (solid) | B14: QC;sto;lat | C14: kWh | D14: =IF(Method_input!E15>1,Method_input!E$41*Method_input!E$15*(Method_input!E39-Method_input!E12)/2/Method_input!E45,0) -> -0.0975 | E14: Formula (4) | G14: need correction to consider the temperature gradient inside the solid phase (see difference of sheet 'Avrami')
A15: Energy stored comply to satisfy need for energy used | C15: logical | D15: =TRUE() -> TRUE | E15: Formula (5)
A16: Energy variation in the storage | B16: DQC;sto;in | C16: kWh | D16: =MIN(SUM(D$12:D$14), Q_C_dis_in_tot_req*f_C_sto_ctrl) -> -72 | F16: positive means reduction of the energy stored | G16: negative value mean 'storage'
A18: Step2- Energy balance when storage capacity is delivered to heat exchanger | B18: QC;gen;out | G18: If energy used and enegy produced are equal to 0, this step corresponds to a standby mode
A19: Initial temperature in the storage unit | B19: qsto,C | C19: °C | D19: =Method_input!E13 -> 0 | E19: -
A20: Energy gain due to thermal transfer in the generation circuit | B20: Qsto,C,out,ls | C20: kWh | D20: =H_C_sto_out_ls*(theta_sto_amb-theta_C_gen_flw)/1000*t_ci -> 87.696 | E20: Formula (7)
A21: Energy gain due to thermal transfer in the distribution circuit | B21: QC;sto;in;ls | C21: kWh | D21: =Method_input!E$57*(theta_sto_amb-theta_C_sto_dis_in_req)/1000*t_ci -> 45.936 | E21: Formula (8)
A22: Energy gain due to thermal transfer (standby losses)in the storage unit | B22: QC;sto;ls | C22: kWh | D22: =Method_input!E37*(Method_input!E61-theta_C_sto)/1000*t_ci -> 62.64 | E22: Formula (9)
A23: Duration of operation for auxiliary pump (Heat exchanger) expressed as part of the step time | B23: tC;sto;aux;in | C23: h | D23: =MAX(D$6/(Method_input!E$42*Method_input!E$55*(Method_input!E10-Method_input!E13)),0) -> 0 | E23: Formula(23)
A25: Step3a - Evolution of solid and liquid phase after energy use from the storage unit (WATER)
A26: Potential Energy to be transformed | B26: DQC;sto | C26: kWh | D26: =D22+D21+D20+D16 -> 124.272 | E26: formula (10) | F26: corresponds to energy available (D14) completed with gain from thermal losses
A27: Step 3a Water (ice and iced water)
A28: Energy transformed | B28: QC;sto;in,tmp1 | C28: kWh | D28: =MIN(D26,D14+D15) -> 0.9025 | F28: If Q>0 then reduction of the solid mass -if Q<0 then storage)
A29: Maximum mass to be stored | B29: m_C;sto;sld;max | C29: kg | D29: =Method_input!E33*Method_input!E46*3.14*((Method_input!E32+d_sto_C_max)^2-Method_input!E32^2)/4 -> 62.643 | G29: corresponds to dsto,C,max
A30: Thickness of the ice around the tube before at beginning of step time | B30: dC;sto;0 | C30: m | D30: =IF(Method_input!F$38=1,(SQRT(Method_input!E$32^2/4+Method_input!E$15/(3.14*Method_input!E$46*Method_input!E$33))-Method_input!E$32/2),0) -> 0 | E30: formula (11)
A31: Variation of mass of the solid phase | B31: DmC;sto;sld,tmp1 | C31: kg | D31: =IF(TYPE_STO_MAT=1,-D$28/(Method_input!E$40+Method_input!E$41*(Method_input!E$13+Method_input!E$12)/2)*Method_input!E$46,0) -> 0 | E31: formula (12) | I31: dsto,C,tmp1 = solution of A.d2+ B.d +C = 0 w
A32: Limitation as the solid mass shall not exceed the limit value | B32: DmC;sto;sld;tmp2 | C32: kg | D32: =IF(TYPE_STO_MAT=1,MIN(D29-Method_input!E15,Method_calculation!D31),0) -> 0 | F32: Dmsto,C,sld,tmp1+msto,C,sld,>0
A33: Test as the solid mass could not be negative | B33: DmC;sto;sld | C33: kg | D33: =IF(D31+m_C_sto_sld<0,-Method_input!E15,D32) -> 0 | F33: Dmsto,C,sld,tmp1+msto,C,sld,>0 | G33: Limitation of mass variation as the thickness is limitd to Dsto,C,max)
A34: Correction of the energy input if the maximum mass is achieved | B34: DQC;sto | C34: kWh | D34: =IF(Method_input!F$38=1,-D$33*(Method_input!E$40+Method_input!E$41*(Method_input!E$13+theta_C_gen_flw)/2)/rau_sld,0) -> 0 | E34: formula (12)
A35: Thickness of the ice around the tube after energy use | B35: dC;sto | C35: m | D35: =IF(Method_input!F$38=1,(MIN(d_sto_C_max,SQRT(Method_input!E$32^2/4+(Method_input!E$15+D33)/(3.14*Method_input!E$46*Method_input!E$33))-Method_input!E$32/2)),0) -> 0 | E35: formula (12) | G35: limited to d_sto_C_max | I35: A= | J35: =3.14*(D$30+Method_input!E$32)*Method_input!E$33/8*Method_input!E$41*(Method_input!E$39-Method_input!$E$12)/Method_calculation!D$30 -> 
A36: Mass of solid phase after 'use' mode and balance of thermal losses | B36: mC;sto;sld | C36: kg | D36: =IF(Method_input!F38=1,D33+Method_input!E15,0) -> 0 | E36: formula (14) | I36: C= | J36: =D28 -> 0.9025
A37: Temperature of the storage (liquid) | B37: qC;sto | C37: °C | D37: =+D19 -> 0 | G37: need improvment if solid mass become equal to 0
A39: Step 3 b Phase changing Material (solid and liqhid mass after energy balance)
A40: Evolution of solid mass | B40: DmC;sto;sld,tmp1 | C40: kg | D40: =IF(Method_input!F$38=1,0,-D$28/(Q_lat+Cp_sens_sld*(theta_C_sto+theta_C_gen_flw)/2)) -> -0.04581218274 | E40: formula (15)
A41: Limitation solid phase | B41: DmC;sto;sld;tmp1 | C41: kg | D41: =IF(D40>0,MIN(D40,D11),MAX(D40,D11*-1)) -> -0.04581218274 | E41: formula (16) | F41: then and
A42: Limitation of energy for transformation to solid phase | D42: =IF(TYPE_STO_MAT=1,0,-D$41*(Method_input!E$40+Method_input!E$41*(Method_input!E$13+Method_input!E$12)/2)) -> 0.9506027919 | E42: formula (17) | F42: If then and
A43: Mass (solid phase) | B43: mC;sto;sld | C43: kg | D43: =Method_input!E15+Method_calculation!D41 -> 77.95418782
A44: Temperature (solid phase) | B44: - | C44: °C | D44: =MAX(Method_input!E$39+(D$42-Method_input!E$41*Method_calculation!D$41)/(Method_input!E$41*Method_calculation!D$43),Method_input!E$39) -> 0.1225314556 | E44: formula (18)
A45: Mass (liquid phase) | B45: mC;sto;lqd | C45: kg | D45: =D11-D41 -> 354.0458122
A46: Temperature( liquid phase) | B46: mC;sto;lqd | C46: °C | D46: =MAX(theta_tr+(D$42-Cp_sens_sld*Method_calculation!D$41)/(Cp_sens_lqd*(Method_calculation!D$11-D41)),theta_tr) -> 0.006744776928 | E46: formula (22)
A48: Total energy input from cooling unit | B48: DQC;gen;sto;out | C48: kWh | D48: =IF(TYPE_STO_MAT=1,-Method_calculation!D28+SUM(D20:D22),-Method_calculation!D42+SUM(D20:D22)) -> 195.3213972 | E48: formula (1)
A49: Opetation time for auxiliary input (primary circuit) | B49: tC;sto,aux;out | C49: h | D49: =ABS(D$7/(Method_input!E$35*Method_input!E28*Method_input!E12*-1)) -> 0 | E49: formula (25)
A50: energy for auxiliary (input) | B50: WC;aux;sto;out | C50: kWh | D50: =D49*Method_input!E27 -> 0 | E50: formula (26)
A51: Mass (solid phase) | B51: MC;sto;sld | C51: kg | D51: =IF(Method_input!F$38=1,D36,D43) -> 77.95418782 | G51: Additionnal output
A52: Mass (liquid phase) | B52: MC;sto;lqd | C52: kg | D52: =IF(Method_input!F$38=1,,D45) -> 354.0458122 | G52: Additionnal output
A53: total auxiliary energy | B53: WC;aux;sto | C53: kWh | D53: =D23*Method_input!E54+D50 -> 0 | E53: Formula (27) | G53: Method output
A54: Heat losses from storage and distribution | B54: QC;sto;ls | C54: kWh | D54: =(D21+D22) -> 108.576 | E54: Formula(6)+(7)+ (8)
A55: Recoverable heat losses from storage and distribution | B55: QC;sto;ls;rbl | C55: kWh | D55: =D54*Method_input!E49 -> 108.576 | E55: Formula (29)
A56: Recoverable heat losses from auxiliary energy | B56: QC;sto;aux;ls;rbl | C56: kWh | D56: =D$53*Method_input!E$50 -> 0 | E56: Formula(28)
A57: total recoverable heat losses | B57: QC;sto;ls;tot;rbl | C57: kWh | D57: =D56+D55 -> 108.576 | E57: Formula (30) | G57: Method output
A58: heat extracted form generation | B58: qC;sto | C58: °C | D58: =D37 -> 0 | E58: Formula (1) | G58: Method output
A59: heat extracted from distribution | B59: QC;sto;in | C59: kWh | D59: =D5 -> -72 | E59: Formula (1) | G59: Method out[put
A60: Cooling production | D60: =D58/Method_input!E24 -> 0

Sheet Output_series
A1: Here a time series can be generated to test the method with variable input data. Data input series must be inserted in the "input_series" sheet before.
A3: Time series for data output
A4: Settings
A5: Number of output data | C5: 12
A7: This table will be filled automatically via a macro scanning the "input_series" and performing for each time step the calculation defined in the "Method_calculation" sheet.
A8: Press CLEAR OUTPUT to reset output series
A9: Press "Run method" to start calculation of individual time steps
B13: Energy extracted fused from Generation | C13: Recoverable heat | D13: Total auxiliary energy | G13: Temperture of the medium of the storage unit | J13: Mass (solid) | K13: Mass (liquid) PCM only | L13: Type of medium
B14: kWh | C14: kWh | D14: kWh | G14: °C | J14: kg | K14: kg | L14: -
A15: Symbol | B15: QC;gen;sto;out | C15: QC;sto;rbl | D15: WC;aux;sto | G15: qC;sto | J15: MC;sto;sld | K15: MC;sto;lqd | L15: List
B16: Q_C_gen_sto_out | C16: Q_C_sto_rbl | D16: W_C_aux_sto | G16: Theta_C_sto | J16: M_C_sto_sld | K16: M_C_sto_lqd | L16: List
A17: Destination
A18: Time stamp | D18: VALUES
A19: 1 | B19: 2 | C19: 0.1508 | D19: 0 | G19: 0 | J19: 49.95265152 | K19: 382.0473485 | L19: PCM
A20: 2 | B20: 2 | C20: 0.1508 | D20: 0 | G20: 0 | J20: 49.95241117 | K20: 382.0475888 | L20: PCM
A21: 3 | B21: 2 | C21: 0.1508 | D21: 0 | G21: 0 | J21: 39.95177665 | K21: 392.0482234 | L21: PCM
A22: 4 | B22: 2 | C22: 0.1508 | D22: 0 | G22: 0 | J22: 49.95241117 | K22: 382.0475888 | L22: PCM
A23: 5 | B23: -2 | C23: 0.1508 | D23: 0 | G23: 0 | J23: 50.08768528 | K23: 381.9123147 | L23: PCM
A24: 6 | B24: -2 | C24: 0.1508 | D24: 0 | G24: 0 | J24: 50.08768528 | K24: 381.9123147 | L24: PCM
A25: 7 | B25: -1 | C25: 0.1508 | D25: 0 | G25: 0 | J25: 20.03692386 | K25: 411.9630761 | L25: PCM
A26: 8 | B26: 0 | C26: 0.1508 | D26: 0 | G26: 0 | J26: 49.98616244 | K26: 382.0138376 | L26: PCM
A27: 9 | B27: 0 | C27: 0.1508 | D27: 0 | G27: 0 | J27: 49.98616244 | K27: 382.0138376 | L27: PCM
A28: 10 | B28: -3 | C28: 0.1508 | D28: 0 | G28: 0 | J28: 50.1384467 | K28: 381.8615533 | L28: PCM
A29: 11 | B29: -3 | C29: 0.1508 | D29: 0 | G29: 0 | J29: 60.1384467 | K29: 371.8615533 | L29: PCM
A30: 12 | B30: -72 | C30: 108.576 | D30: 0 | G30: 0 | J30: 77.95418782 | K30: 354.0458122 | L30: PCM
A31: 13
A32: =A31+1 -> 14
A33: 15
A34: 16
A35: 17
A36: 18
A37: 19
A38: 20

Sheet Method_output
A1: THIS IS A MANDATORY SHEET Output of one step calculation shall be indicated here. Each cell in the column value shall be a reference to a single cell in the "Method_calculation" sheet. The macro will take the calculation step results and fill the values table in the "Output_series" sheet.
A3: Description | B3: Unit | E3: Value
A9: Name | B9: Symbol | C9: Computed symbol | D9: Unit | E9: Value | F9: Intended destination | G9: Notes
A10: Energy flow daa
A11: Energy extracted from the distribution system | B11: QC;sto;in | C11: Q_C_sto_in | D11: kWh | E11: =+Method_calculation!D59 -> -72 | F11: M4-1 | G11: Difference input and output
A12: Heat losses (recoverable) | B12: QC;sto;ls;tot;rbl | C12: Q_C_sto_ls_rbl | D12: kWh | E12: =Method_calculation!D57 -> 108.576 | F12: M2-2 | G12: Recoverable heat for heating of storage room
A13: Total auxiliary energy | B13: WC;sto;aux | C13: Q_C_sto_aux | D13: kWh | E13: =Method_calculation!D53 -> 0 | F13: M4-1; M4-4 | G13: storage auxiliary energy
A15: Operating condition data
A16: Temperture of the medium of the storage unit | B16: JC;sto;out | C16: theta_C_sto_out | D16: oC | E16: =Method_calculation!D58 -> 0 | F16: M4-1
A18: Other data | G18: for information only
A19: Mass (solid phase) | B19: mC;sto;sld | C19: m_C_sto_sld | D19: kg | E19: =Method_calculation!D51 -> 77.95418782 | F19: local
A20: Mass (liquid phase) | B20: mC;sto;lqd | C20: m_C_sto_lqd | D20: kg | E20: =Method_calculation!D52 -> 354.0458122 | F20: local | G20: only available for PCM
A21: Type of material for storage | B21: STO_TYPE | C21: STO_TYPE | D21: List | E21: =Method_calculation!D8 -> PCM | F21: -

Sheet History
B2: Date | C2: Version scope | D2: Changes, notes
B3: 2013-09-02 | C3: 0.0 | D3: Draft version to state of terms and subscripts - PCM to be added
B4: 2013-10-10 | C4: 0.1 | D4: First version - test to be addded
B5: 2013-12-27 | C5: 0.2 | D5: Addition of condition on solid mass and liquid mass - Add energy auxiliary of th primary circuit

Sheet Avrami curve
C11: % | D11: Cristalisation | E11: Melting
B12: Tf | C12: 0 | D12: 0 | E12: 0
C13: =C12+10 -> 10 | D13: 5 | E13: 3
C14: =C13+10 -> 20 | D14: 10 | E14: 5
C15: 30 | D15: 25 | E15: 12
C16: 40 | D16: 60 | E16: 25
C17: 50 | D17: 80 | E17: 46
C18: 60 | D18: 88 | E18: 80
C19: 70 | D19: 92 | E19: 90
C20: 80 | D20: 96 | E20: 95
C21: 90 | D21: 98 | E21: 97
B22: Ts | C22: 100 | D22: 100 | E22: 100
B27: Distance Linear / non linear regretion
B28: Tr | C28: Tsol
A29: 2.1 | B29: 0 | C29: =-6+6*(1-EXP(-A29*B29/6)) -> -6 | D29: -6
A30: 2.1 | B30: =B29+0.1 -> 0.1 | C30: =-6-6*(LOG((0.03+B30*0.02)/0.03)/LOG(0.03/0.05)) -> -5.241950464 | D30: =-6+B30*6 -> -5.4
A31: 2.1 | B31: =B30+0.1 -> 0.2 | C31: =-6-6*(LOG((0.03+B31*0.02)/0.03)/LOG(0.03/0.05)) -> -4.529872382 | D31: =-6+B31*6 -> -4.8
A32: 2.1 | B32: 0.3 | C32: -3.858507307 | D32: -4.2
A33: 2.1 | B33: 0.4 | C33: -3.223450425 | D33: -3.6
A34: 2.1 | B34: 0.5 | C34: -2.620975232 | D34: -3
A35: 2.1 | B35: 0.6 | C35: -2.047901034 | D35: -2.4
A36: 2.1 | B36: 0.7 | C36: -1.501491298 | D36: -1.8
A37: 2.1 | B37: 0.8 | C37: -0.9793746248 | D37: -1.2
A38: 2.1 | B38: 0.9 | C38: -0.4794825391 | D38: -0.6
A39: 2.1 | B39: 1 | C39: 0 | D39: 0 | G39: Temperature of ice stored
D40: linear

Sheet Feuil2
